bitfinex/quotes_SOLUSD_20230110
["timestamp","ask_amount","ask_price","bid_price","bid_amount"]
[1673317651864,46.47,16.146,16.131,0.30996]
[1673317652060,20.0,16.145,16.131,20.30996]
[1673317652263,46.47,16.144,16.131,20.30996]
[1673317652912,18.5307897,16.143,16.131,20.30996]
[1673317653121,46.48,16.142,16.131,20.30996]
[1673317653528,46.47,16.144,16.131,20.30996]
[1673317653743,20.0,16.145,16.131,20.30996]
[1673317653954,20.0,16.148,16.131,20.30996]
[1673317654180,46.46,16.147,16.131,20.30996]
[1673317654586,38.5307897,16.146,16.131,20.30996]
[1673317654803,46.47,16.145,16.131,20.30996]
[1673317655018,20.0,16.144,16.131,20.30996]
[1673317655232,46.48,16.143,16.131,20.30996]
[1673317655652,65.0107897,16.143,16.131,20.30996]
[1673317655862,18.5307897,16.142,16.131,20.30996]
[1673317660799,128.61,16.15,16.131,20.30996]
[1673317660992,25.62,16.16,16.132,46.51]
[1673317661638,46.43,16.159,16.14,25.49]
[1673317661838,64.9607897,16.159,16.141,164.9635]
[1673317662045,18.5307897,16.158,16.141,164.9635]
[1673317662255,46.44,16.157,16.141,164.9635]
[1673317662673,18.5307897,16.156,16.141,164.9635]
[1673317662889,46.44,16.155,16.141,118.4835]
[1673317663213,18.5307897,16.154,16.141,118.4835]
[1673317663417,46.45,16.153,16.141,118.4835]
[1673317663628,64.9707897,16.154,16.142,20.0]
[1673317663833,18.5307897,16.154,16.142,20.0]
[1673317664043,64.9707897,16.154,16.142,20.0]
[1673317665414,18.5307897,16.153,16.142,20.0]
[1673317665624,20.0,16.155,16.142,20.0]
[1673317665952,20.0,16.157,16.142,20.0]
[1673317666162,46.44,16.156,16.142,66.48]
[1673317666368,20.0,16.155,16.142,66.48]
[1673317666893,46.43,16.159,16.142,66.48]
[1673317667103,46.43,16.16,16.142,66.48]
[1673317667428,18.5307897,16.161,16.143,17.0]
[1673317667744,18.5307897,16.161,16.145,19.5]
[1673317667949,18.5307897,16.161,16.146,63.47]
[1673317668263,18.5307897,16.161,16.147,20.0]
[1673317668471,72.12,16.16,16.146,117.1401]
[1673317668686,20.0,16.159,16.146,117.1401]
[1673317668877,63.43,16.158,16.146,117.1401]
[1673317669086,20.0,16.157,16.146,117.1401]
[1673317669316,46.44,16.156,16.146,117.1401]
[1673317669525,20.0,16.155,16.146,117.1401]
[1673317670050,46.43,16.159,16.146,117.1401]
[1673317670471,18.5307897,16.158,16.146,117.1401]
[1673317670680,46.44,16.157,16.146,117.1401]
[1673317671525,18.5307897,16.158,16.147,20.0]
[1673317672369,46.3367138,16.157,16.13,20.0]
[1673317672693,46.3367138,16.157,16.11,30.99762313]
[1673317672694,128.37,16.14,16.131,0.30996]
[1673317672898,63.49,16.139,16.131,0.30996]
[1673317673224,20.0,16.138,16.129,2.3525366]
[1673317673434,63.49,16.137,16.129,2.3525366]
[1673317673655,20.0,16.136,16.129,2.3525366]
[1673317673888,63.5,16.135,16.129,2.3525366]
[1673317674168,20.0,16.134,16.129,2.3525366]
[1673317674381,17.0,16.133,16.129,2.3525366]
[1673317674708,46.51,16.132,16.129,2.3525366]
[1673317674910,53.80623772,16.132,16.129,2.3525366]
[1673317675222,18.5307897,16.133,16.129,2.3525366]
[1673317675436,18.5307897,16.132,16.129,2.3525366]
[1673317679447,18.5307897,16.132,16.12,20.0]
[1673317679448,37.0,16.131,16.12,20.0]
[1673317679746,18.5307897,16.13,16.12,20.0]
[1673317680365,18.5307897,16.13,16.117,46.55]
[1673317680686,37.0,16.129,16.112,46.56]
[1673317680900,46.52,16.128,16.111,112.5246]
[1673317681222,20.0,16.126,16.112,20.0]
[1673317681425,83.53,16.125,16.112,20.0]
[1673317681637,66.53,16.125,16.112,20.0]
[1673317682155,20.0,16.124,16.112,20.0]
[1673317682372,66.53,16.123,16.112,20.0]
[1673317682574,20.0,16.123,16.112,20.0]
[1673317683097,20.0,16.126,16.112,20.0]
[1673317683315,46.53,16.125,16.112,20.0]
[1673317683542,20.0,16.124,16.112,20.0]
[1673317683723,46.53,16.123,16.111,112.5246]
[1673317683923,65.0607897,16.123,16.111,112.5246]
[1673317684139,18.5307897,16.122,16.111,112.5246]
[1673317684358,17.0,16.121,16.111,112.5246]
[1673317684559,17.0,16.121,16.107,0.1040501]
[1673317684560,174.99,16.12,16.107,0.1040501]
[1673317684774,90.9207897,16.12,16.107,0.1040501]
[1673317685094,90.9207897,16.12,16.08,6.0469766]
[1673317685095,52.7410267,16.102,16.08,6.0469766]
[1673317685291,18.4530801,16.105,16.072,423.128873]
[1673317685292,57.93548,16.101,16.072,423.128873]
[1673317685634,57.93548,16.101,16.062,74.50414517]
[1673317685635,5.4154976,16.065,16.062,74.50414517]
[1673317685822,53.77830793,16.058,16.049,282.1100305]
[1673317686024,46.72,16.057,16.049,282.1100305]
[1673317686237,0.69984117,16.056,16.049,282.1100305]
[1673317686457,198.07113117,16.09,16.049,282.1100305]
[1673317686656,223.84113117,16.09,16.06,26.6]
[1673317686864,192.56872118,16.109,16.068,5.4154976]
[1673317687088,192.56872118,16.109,16.09,128.25]
[1673317687332,192.56872118,16.109,16.091,46.63]
[1673317687530,192.56872118,16.109,16.08,128.38]
[1673317687531,192.56872118,16.109,16.081,46.65]
[1673317687740,77.57175844,16.105,16.082,11.47962]
[1673317687922,25.62,16.1,16.083,61.15]
[1673317688137,25.69,16.09,16.071,46.68]
[1673317688449,46.57,16.111,16.072,31.48677]
[1673317688659,46.56,16.112,16.073,78.16605]
[1673317688890,25.54,16.11,16.08,128.01]
[1673317689099,46.57,16.109,16.081,58.13034]
[1673317689290,46.57,16.109,16.083,20.0]
[1673317689495,128.38,16.1,16.084,46.65]
[1673317689710,128.38,16.1,16.07,148.56]
[1673317689711,46.6,16.099,16.074,46.67]
[1673317689922,46.6,16.099,16.074,11.48534]
[1673317690236,20.0,16.109,16.076,20.0]
[1673317690445,66.58,16.108,16.077,58.15319]
[1673317690680,128.36,16.1,16.077,58.15319]
[1673317690883,66.6,16.099,16.077,46.67]
[1673317691287,20.0,16.098,16.077,46.67]
[1673317691499,128.45,16.09,16.076,141.2373862]
[1673317691709,63.63,16.089,16.076,141.2373862]
[1673317691928,20.0,16.088,16.076,141.2373862]
[1673317692142,46.64,16.087,16.076,141.2373862]
[1673317692551,128.37,16.1,16.076,141.2373862]
[1673317692878,128.38,16.09,16.076,141.2373862]
[1673317693080,128.3,16.09,16.076,141.2373862]
[1673317693293,46.63,16.089,16.076,141.2373862]
[1673317694122,46.62,16.094,16.076,141.2373862]
[1673317694327,46.6,16.099,16.077,46.67]
[1673317694559,128.68,16.09,16.077,141.2373862]
[1673317694876,46.63,16.089,16.077,141.2373862]
[1673317695908,128.61,16.11,16.08,25.49]
[1673317696117,25.69,16.1,16.081,46.65]
[1673317696331,25.69,16.1,16.082,37.0]
[1673317696539,46.58,16.108,16.083,46.65]
[1673317696859,46.51,16.132,16.084,28.4782]
[1673317697070,46.51,16.132,16.09,128.45]
[1673317697296,25.6,16.11,16.091,46.63]
[1673317697608,46.57,16.109,16.087,46.64]
[1673317697815,128.68,16.1,16.085,11.47748]
[1673317698020,1248.5,16.133,16.086,46.64]
[1673317698021,74.24846036,16.116,16.086,46.64]
[1673317698221,128.45,16.12,16.088,20.0]
[1673317698436,25.69,16.11,16.09,25.69]
[1673317698655,25.69,16.11,16.091,46.63]
[1673317698848,46.57,16.109,16.088,161.2373862]
[1673317699275,46.57,16.109,16.096,0.37924251]
[1673317699903,20.0,16.108,16.096,0.37924251]
[1673317700114,46.58,16.107,16.096,0.37924251]
[1673317700323,46.57,16.109,16.096,0.37924251]
[1673317700539,46.57,16.109,16.096,141.61662871]
[1673317703177,20.0,16.108,16.097,20.0]
[1673317703812,20.0,16.109,16.097,20.0]
[1673317704022,66.57,16.109,16.097,20.0]
[1673317704229,128.69,16.13,16.1,25.69]
[1673317704438,25.62,16.13,16.101,58.06608]
[1673317704645,601.1,16.146,16.102,32.78658158]
[1673317704859,46.5,16.136,16.102,20.0]
[1673317705182,25.77,16.12,16.1,141.2373862]
[1673317705395,46.54,16.119,16.101,46.6]
[1673317705581,25.77,16.12,16.101,46.6]
[1673317705788,46.52,16.129,16.102,20.0]
[1673317706003,46.52,16.129,16.103,58.05465]
[1673317706318,46.52,16.129,16.104,48.46394]
[1673317706523,25.77,16.13,16.11,25.69]
[1673317706738,46.52,16.129,16.111,46.57]
[1673317706946,46.52,16.129,16.112,17.0]
[1673317707176,6.0469766,16.137,16.113,66.56]
[1673317707377,6.0469766,16.137,16.114,17.0]
[1673317707696,6.0469766,16.137,16.115,46.56]
[1673317707907,46.5,16.136,16.116,20.0]
[1673317708330,46.5,16.136,16.116,66.55]
[1673317708538,25.6,16.13,16.116,20.0]
[1673317708748,46.52,16.129,16.116,161.2373862]
[1673317709162,20.0,16.128,16.116,161.2373862]
[1673317709571,46.52,16.127,16.116,161.2373862]
[1673317709783,6.0469766,16.137,16.116,161.2373862]
[1673317710103,6.0469766,16.137,16.118,20.0]
[1673317710315,6.0469766,16.137,16.119,63.54]
[1673317710514,46.5,16.136,16.12,20.0]
[1673317710941,25.69,16.13,16.12,20.0]
[1673317711356,46.5,16.136,16.12,20.0]
[1673317711586,20.0,16.135,16.12,20.0]
[1673317711794,46.5,16.134,16.12,20.0]
[1673317711990,20.0,16.133,16.12,20.0]
[1673317712740,25.6,16.13,16.12,141.2373862]
[1673317712931,83.52,16.129,16.12,141.2373862]
[1673317713598,83.02,16.129,16.12,141.2373862]
[1673317714220,82.64075749,16.129,16.12,141.2373862]
[1673317714946,268.04075749,16.129,16.12,130.2373862]
[1673317715140,30.0,16.121,16.12,130.2373862]
[1673317715351,96.54,16.121,16.12,124.1870862]
[1673317716518,281.94,16.121,16.1,0.31056]
[1673317716726,128.37,16.11,16.1,0.31056]
[1673317716959,20.0,16.108,16.1,0.31056]
[1673317717151,46.58,16.107,16.1,0.31056]
[1673317717806,46.57,16.109,16.1,0.31056]
[1673317718020,20.0,16.108,16.1,0.31056]
[1673317718334,46.58,16.107,16.1,0.31056]
[1673317718533,20.0,16.106,16.1,0.31056]
[1673317718733,63.58,16.105,16.1,0.31056]
[1673317719071,20.0,16.104,16.1,0.31056]
[1673317719273,46.59,16.103,16.1,0.31056]
[1673317720203,17.0,16.102,16.1,0.31056]
[1673317721489,46.59,16.103,16.1,0.31056]
[1673317721916,17.0,16.102,16.1,0.31056]
[1673317723900,46.59,16.103,16.1,0.31056]
[1673317725253,17.0,16.102,16.1,0.31056]
[1673317727056,17.0,16.102,16.084,46.65]
[1673317727057,66.6,16.101,16.084,46.65]
[1673317727248,128.68,16.1,16.075,162.5546]
[1673317727460,86.6,16.099,16.084,20.0]
[1673317727770,86.6,16.099,16.075,162.5546]
[1673317727771,128.59,16.09,16.076,42.66558083]
[1673317727978,46.63,16.089,16.076,42.66558083]
[1673317728191,20.0,16.088,16.076,42.66558083]
[1673317728414,435.0,16.099,16.07,25.49]
[1673317728415,46.61,16.098,16.07,25.49]
[1673317728636,20.0,16.097,16.071,58.16748]
[1673317728849,20.0,16.095,16.072,20.0]
[1673317729056,46.62,16.094,16.073,46.68]
[1673317729251,20.0,16.093,16.073,46.68]
[1673317729576,25.69,16.09,16.073,58.16605]
[1673317729792,25.69,16.09,16.072,20.0]
[1673317729793,46.63,16.089,16.072,20.0]
[1673317730004,20.0,16.088,16.072,20.0]
[1673317730191,46.64,16.087,16.072,20.0]
[1673317730405,20.0,16.086,16.072,20.0]
[1673317730825,17.0,16.085,16.072,20.0]
[1673317731137,25.69,16.09,16.073,46.68]
[1673317731352,46.61,16.098,16.073,46.68]
[1673317731576,46.61,16.098,16.073,161.3037]
[1673317731796,46.61,16.098,16.074,20.0]
[1673317732190,20.0,16.097,16.074,20.0]
[1673317732417,46.61,16.096,16.074,20.0]
[1673317732631,46.61,16.096,16.076,20.0]
[1673317732839,46.61,16.098,16.077,46.67]
[1673317733053,20.0,16.097,16.077,46.67]
[1673317733257,25.6,16.09,16.073,114.6237]
[1673317733473,66.63,16.089,16.073,114.6237]
[1673317733992,17.0,16.088,16.073,114.6237]
[1673317734197,66.64,16.087,16.073,114.6237]
[1673317734410,17.0,16.086,16.073,113.6237]
[1673317734624,20.0,16.085,16.073,113.6237]
[1673317734943,17.0,16.084,16.073,113.6237]
[1673317735139,20.0,16.083,16.073,113.6237]
[1673317735348,17.0,16.082,16.066,66.7]
[1673317735563,25.6,16.08,16.066,20.0]
[1673317735772,17.0,16.079,16.066,20.0]
[1673317736106,20.0,16.078,16.066,20.0]
[1673317736316,63.67,16.077,16.063,20.0]
[1673317736614,20.0,16.076,16.063,20.0]
[1673317736827,17.0,16.075,16.063,20.0]
[1673317737044,20.0,16.074,16.063,20.0]
[1673317737550,17.0,16.073,16.063,20.0]
[1673317737760,20.0,16.074,16.063,20.0]
[1673317737972,20.0,16.078,16.063,20.0]
[1673317738284,128.59,16.08,16.063,20.0]
[1673317738285,25.85,16.08,16.063,20.0]
[1673317738506,523.38,16.09,16.065,20.0]
[1673317738717,523.38,16.09,16.066,46.7]
[1673317738926,25.69,16.08,16.066,46.7]
[1673317739141,25.69,16.08,16.065,19.5]
[1673317739538,46.66,16.079,16.062,117.4936913]
[1673317739757,20.0,16.078,16.062,117.4936913]
[1673317739970,46.67,16.077,16.062,117.4936913]
[1673317740286,20.0,16.076,16.062,117.4936913]
[1673317740613,128.3,16.09,16.062,117.4936913]
[1673317740828,20.0,16.089,16.063,66.71]
[1673317741140,25.62,16.08,16.063,66.71]
[1673317741354,25.62,16.08,16.063,20.0]
[1673317741355,66.66,16.079,16.063,20.0]
[1673317741877,17.0,16.078,16.063,20.0]
[1673317742075,66.67,16.077,16.063,20.0]
[1673317742290,17.0,16.076,16.063,20.0]
[1673317742486,46.67,16.075,16.063,20.0]
[1673317742691,37.0,16.074,16.062,117.4936913]
[1673317742923,46.68,16.073,16.062,117.4936913]
[1673317743133,20.0,16.072,16.062,117.4936913]
[1673317743339,25.69,16.07,16.062,117.4936913]
[1673317743553,46.69,16.069,16.062,117.4936913]
[1673317743775,17.0,16.068,16.062,117.4936913]
[1673317744111,66.7,16.067,16.062,117.4936913]
[1673317744299,17.0,16.066,16.062,117.4936913]
[1673317744515,66.7,16.065,16.062,117.4936913]
[1673317744715,17.0,16.064,16.062,117.4936913]
[1673317745043,46.71,16.063,16.062,117.4936913]
[1673317745232,83.71,16.063,16.062,106.4936913]
[1673317745884,269.11,16.063,16.062,106.4936913]
[1673317746287,246.04825507,16.061,16.056,6.0469766]
[1673317746496,291.8936913,16.059,16.056,6.0469766]
[1673317746718,46.72,16.058,16.041,24.923137]
[1673317747252,20.0,16.057,16.041,24.923137]
[1673317747469,63.73,16.056,16.041,24.923137]
[1673317748094,153.2136913,16.059,16.041,24.923137]
[1673317748303,20.0,16.055,16.041,24.923137]
[1673317748624,20.0,16.055,16.047,20.0]
[1673317748807,106.4936913,16.059,16.047,20.0]
[1673317749229,106.4936913,16.059,16.048,46.75]
[1673317749451,106.4936913,16.059,16.047,20.0]
[1673317749663,153.2136913,16.059,16.047,20.0]
[1673317752078,20.0,16.058,16.047,20.0]
[1673317752392,63.72,16.057,16.043,20.0]
[1673317752601,20.0,16.056,16.043,20.0]
[1673317752799,63.73,16.055,16.043,20.0]
[1673317753019,46.73,16.055,16.047,20.0]
[1673317754169,17.0,16.054,16.047,20.0]
[1673317754593,17.0,16.054,16.043,20.0]
[1673317755346,46.73,16.055,16.043,20.0]
[1673317755555,46.73,16.055,16.047,20.0]
[1673317755774,20.0,16.056,16.047,20.0]
[1673317755987,20.0,16.057,16.047,19.0]
[1673317756616,20.0,16.058,16.047,19.0]
[1673317757464,20.0,16.058,16.044,46.76]
[1673317757654,66.72,16.058,16.042,108.5344]
[1673317758073,20.0,16.058,16.042,108.5344]
[1673317758298,20.0,16.058,16.047,20.0]
[1673317761222,106.4936913,16.059,16.047,20.0]
[1673317761436,106.4936913,16.059,16.048,63.75]
[1673317761869,0.6224913,16.059,16.049,20.0]
[1673317762063,46.7,16.067,16.051,20.0]
[1673317762276,20.0,16.068,16.051,20.0]
[1673317762490,46.7,16.067,16.051,20.0]
[1673317762700,46.69,16.069,16.051,20.0]
[1673317763120,20.0,16.067,16.051,20.0]
[1673317763331,20.0,16.068,16.051,20.0]
[1673317763332,66.7,16.066,16.051,20.0]
[1673317763534,46.7,16.067,16.051,20.0]
[1673317763745,20.0,16.066,16.051,20.0]
[1673317763957,63.7,16.065,16.051,20.0]
[1673317764400,46.7,16.065,16.051,20.0]
[1673317765120,20.0,16.066,16.051,20.0]
[1673317765321,46.7,16.065,16.051,20.0]
[1673317765533,17.0,16.065,16.051,20.0]
[1673317765860,46.7,16.067,16.052,46.74]
[1673317766056,20.0,16.066,16.053,20.0]
[1673317767034,128.38,16.08,16.053,20.0]
[1673317767333,128.38,16.08,16.054,185.05741781]
[1673317767554,128.38,16.08,16.055,20.0]
[1673317767745,46.66,16.079,16.056,66.12632966]
[1673317767960,46.66,16.079,16.057,20.0]
[1673317768182,20.0,16.078,16.058,66.11632966]
[1673317768395,46.67,16.077,16.058,49.11632966]
[1673317768586,20.0,16.076,16.058,49.11632966]
[1673317768792,46.67,16.075,16.058,2.39632966]
[1673317769002,46.67,16.075,16.059,17.0]
[1673317769213,46.67,16.075,16.06,2.39632966]
[1673317769960,46.66,16.079,16.06,22.39632966]
[1673317770181,46.66,16.079,16.062,2.39632966]
[1673317771023,20.0,16.078,16.062,2.39632966]
[1673317771223,46.67,16.077,16.062,2.39632966]
[1673317771432,20.0,16.076,16.062,2.39632966]
[1673317771649,46.64,16.087,16.062,49.10632966]
[1673317771975,46.63,16.089,16.064,2.39632966]
[1673317772171,46.63,16.089,16.065,46.7]
[1673317772385,46.63,16.089,16.066,37.0]
[1673317772701,46.63,16.089,16.067,58.19034]
[1673317773029,46.63,16.089,16.067,168.94694]
[1673317773336,128.22,16.08,16.067,110.7566]
[1673317773535,128.22,16.08,16.06,116.9149]
[1673317773536,46.66,16.079,16.06,116.9149]
[1673317773737,25.69,16.07,16.06,116.9149]
[1673317773951,46.69,16.069,16.06,116.9149]
[1673317775862,37.0,16.068,16.048,66.75]
[1673317776063,46.7,16.067,16.053,136.9149]
[1673317776270,37.0,16.066,16.053,136.9149]
[1673317776484,46.7,16.065,16.053,136.9149]
[1673317777865,17.0,16.064,16.053,136.9149]
[1673317778069,46.71,16.063,16.053,136.9149]
[1673317778915,46.7,16.065,16.053,136.9149]
[1673317779124,128.22,16.07,16.053,136.9149]
[1673317779125,20.0,16.064,16.053,136.9149]
[1673317779311,20.0,16.064,16.055,20.0]
[1673317779527,20.0,16.064,16.056,17.0]
[1673317779738,20.0,16.068,16.057,20.0]
[1673317779943,46.7,16.067,16.057,20.0]
[1673317780166,20.0,16.066,16.057,20.0]
[1673317780382,46.7,16.065,16.057,20.0]
[1673317780600,20.0,16.064,16.057,20.0]
[1673317781127,46.71,16.063,16.053,136.9149]
[1673317781341,25.69,16.06,16.053,20.0]
[1673317781531,66.72,16.059,16.053,20.0]
[1673317782172,66.72,16.059,16.048,20.0]
[1673317782823,17.0,16.058,16.048,20.0]
[1673317783034,66.72,16.057,16.048,20.0]
[1673317783865,20.0,16.057,16.048,20.0]
[1673317784074,20.0,16.069,16.048,20.0]
[1673317784387,46.69,16.068,16.052,17.0]
[1673317784701,20.0,16.067,16.052,17.0]
[1673317785228,46.69,16.069,16.052,17.0]
[1673317785229,20.0,16.068,16.053,20.0]
[1673317785443,46.7,16.067,16.054,17.0]
[1673317785654,46.69,16.069,16.053,20.0]
[1673317786582,20.0,16.068,16.053,20.0]
[1673317786799,46.7,16.067,16.054,17.0]
[1673317787013,20.0,16.066,16.054,17.0]
[1673317787742,20.0,16.068,16.054,17.0]
[1673317787968,46.7,16.067,16.054,17.0]
[1673317788286,20.0,16.066,16.054,17.0]
[1673317788689,20.0,16.068,16.053,20.0]
[1673317788902,46.7,16.067,16.053,20.0]
[1673317789307,46.69,16.069,16.054,28.49965]
[1673317789517,420.62,16.08,16.06,25.49]
[1673317789733,420.62,16.08,16.062,20.0]
[1673317789943,420.62,16.08,16.063,65.75478139]
[1673317790173,46.66,16.079,16.064,20.0]
[1673317790381,46.64,16.087,16.065,19.14350031]
[1673317790591,46.63,16.089,16.065,177.11540031]
[1673317790908,46.63,16.089,16.066,20.0]
[1673317791100,46.63,16.089,16.067,17.0]
[1673317791321,46.63,16.089,16.068,31.48963]
[1673317791532,46.63,16.089,16.069,46.69]
[1673317791848,20.0,16.087,16.068,20.0]
[1673317792178,46.64,16.086,16.068,20.0]
[1673317792387,523.22,16.09,16.068,20.0]
[1673317792388,46.63,16.089,16.068,20.0]
[1673317793014,46.63,16.089,16.069,46.69]
[1673317793557,25.69,16.08,16.066,20.0]
[1673317793764,66.66,16.079,16.066,20.0]
[1673317794480,46.63,16.088,16.066,20.0]
[1673317794690,20.0,16.087,16.067,63.7]
[1673317794900,46.64,16.086,16.068,20.0]
[1673317795132,20.0,16.085,16.069,46.69]
[1673317795342,46.65,16.084,16.07,17.0]
[1673317795537,20.0,16.085,16.071,20.0]
[1673317796067,20.0,16.085,16.072,17.0]
[1673317796279,20.0,16.088,16.072,17.0]
[1673317796495,46.64,16.087,16.072,132.8021]
[1673317796710,20.0,16.086,16.073,20.0]
[1673317797020,20.0,16.086,16.072,115.8021]
[1673317797234,31.09771233,16.102,16.08,25.69]
[1673317797420,446.54,16.11,16.082,20.0]
[1673317797421,20.0,16.109,16.082,20.0]
[1673317797751,20.0,16.109,16.083,3.82261363]
[1673317797947,25.62,16.1,16.083,3.82261363]
[1673317798163,46.6,16.099,16.083,3.82261363]
[1673317798373,46.58,16.108,16.084,46.65]
[1673317798580,46.58,16.108,16.085,3.82261363]
[1673317798896,46.57,16.109,16.086,46.64]
[1673317799123,46.57,16.109,16.087,23.82261363]
[1673317799336,46.57,16.109,16.088,17.0]
[1673317799538,46.57,16.109,16.089,11.47463]
[1673317800158,25.6,16.1,16.087,20.0]
[1673317800374,46.6,16.099,16.085,3.82261363]
[1673317800682,20.0,16.098,16.084,3.82261363]
[1673317800891,46.61,16.097,16.084,3.82261363]
[1673317801101,25.77,16.11,16.085,46.64]
[1673317801321,20.0,16.109,16.09,25.49]
[1673317801541,25.77,16.11,16.087,3.82261363]
[1673317801542,128.22,16.11,16.087,3.82261363]
[1673317801849,20.0,16.109,16.084,23.82261363]
[1673317802064,46.58,16.108,16.084,23.82261363]
[1673317802672,46.58,16.108,16.084,70.47261363]
[1673317802891,25.6,16.1,16.084,23.82261363]
[1673317803103,66.6,16.099,16.084,23.82261363]
[1673317803743,66.6,16.099,16.084,3.82261363]
[1673317805407,17.0,16.098,16.084,3.82261363]
[1673317805621,66.61,16.097,16.084,3.82261363]
[1673317806884,17.0,16.096,16.084,3.82261363]
[1673317807096,66.61,16.095,16.075,66.67]
[1673317807299,25.69,16.09,16.076,111.1439]
[1673317807509,83.63,16.089,16.076,111.1439]
[1673317807830,83.63,16.089,16.075,20.0]
[1673317808268,83.63,16.089,16.076,0.98595738]
[1673317808576,83.63,16.089,16.072,111.1439]
[1673317808577,83.63,16.089,16.075,0.98595738]
[1673317808794,83.63,16.089,16.072,111.1439]
[1673317809421,83.63,16.089,16.068,20.0]
[1673317809619,25.6,16.08,16.066,20.0]
[1673317809823,83.66,16.079,16.065,230.0613]
[1673317810468,66.66,16.079,16.065,230.0613]
[1673317810678,17.0,16.078,16.065,230.0613]
[1673317810887,66.67,16.077,16.065,230.0613]
[1673317812662,65.67,16.077,16.065,230.0613]
[1673317812897,65.67,16.077,16.066,20.0]
[1673317816055,128.53,16.1,16.07,25.69]
[1673317816246,128.53,16.1,16.071,46.68]
[1673317816678,66.6,16.099,16.072,37.80611567]
[1673317816874,66.6,16.099,16.074,20.0]
[1673317817082,66.6,16.099,16.074,130.0216]
[1673317817504,25.62,16.09,16.074,130.0216]
[1673317817713,66.63,16.089,16.074,130.0216]
[1673317817923,64.73575452,16.089,16.074,130.0216]
[1673317818884,64.73575452,16.089,16.075,17.0]
[1673317819940,46.63,16.089,16.075,17.0]
[1673317820154,20.0,16.098,16.075,0.94097194]
[1673317820358,46.61,16.097,16.075,63.67]
[1673317820570,46.6,16.099,16.075,17.0]
[1673317820786,46.6,16.099,16.077,20.83724647]
[1673317820973,46.6,16.099,16.078,17.0]
[1673317821819,46.6,16.099,16.081,21.37737521]
[1673317822029,46.6,16.099,16.083,1.47751479]
[1673317822234,128.22,16.11,16.084,58.1282]
[1673317822235,46.57,16.109,16.084,58.1282]
[1673317822493,46.57,16.109,16.09,25.69]
[1673317822783,46.56,16.112,16.092,20.0]
[1673317823100,25.6,16.11,16.093,171.60208]
[1673317823305,46.57,16.109,16.094,20.0]
[1673317823719,46.56,16.112,16.096,20.0]
[1673317823926,46.56,16.112,16.095,46.61]
[1673317824134,25.77,16.11,16.093,113.5103]